Cogmind - Beta 13 @@@ ROGUE MODE // 2024.04.13 @ 02:16:03 Player: Patryk Z Result: Destroyed by Heavy Explosive Trap Performance ------------- Evolutions (1) 500 Regions Visited (4) 800 Robots Destroyed (26) 130 Value Destroyed (636) 636 Prototype IDs (0) 0 Alien Tech Used (0) 0 Bonus (702) 702 TOTAL SCORE: 2768 Bonus ------- High Alert Combat Kills 2 Entered Garrisons 200 Used RIF Installer 500 Cogmind --------- Core Integrity 0/400 Matter 226/300 Energy 99/100 System Corruption 4% Temperature Cool (0) Movement Core (50) Location -9/Garrison Parts ------- > --- POWER (1) -------- (None) > --- PROPULSION (2) --- (None) > --- UTILITY (4) ------ (None) > --- WEAPON (2) ------- Hammer > --- INVENTORY (5) ---- VTOL Module Gamma Bomb Trap Gamma Bomb Trap Peak State ------------ > --- POWER ------------ Light Ion Engine > --- PROPULSION ------- VTOL Module VTOL Module > --- UTILITY ---------- Small Storage Unit Sensor Array Seismic Detector > --- WEAPON ----------- Rocket Launcher Hammer > --- INVENTORY -------- VTOL Module VTOL Module VTOL Module VTOL Module [Rating: 11] Favorites ----------- Power Light Ion Engine Engine Light Ion Engine Propulsion Light Treads Treads Light Treads Flight Unit VTOL Module Utility Small Storage Unit Device Sensor Array Storage Small Storage Unit Weapon Hammer Energy Gun EM Pulse Gun Ballistic Gun Assault Rifle Launcher Rocket Launcher Special Weapon Mining Laser Impact Weapon Hammer Build | -11 -10 -9 -9 -9 ------- Run | Yrd Mat Mat Sto Gar Slots Evolved 2 | . . 2 . . Power . | . . . . . Propulsion . | . . . . . Utility 2 | . . 2 . . Weapon . | . . . . . Parts Attached 41 | 8 7 10 12 4 Power 3 | 1 . 1 1 . Engine 3 | 1 . 1 1 . Core . | . . . . . Reactor . | . . . . . Propulsion 10 | 2 . 3 4 1 Treads 2 | 2 . . . . Leg . | . . . . . Wheel . | . . . . . Hover . | . . . . . Flight 8 | . . 3 4 1 Utility 10 | 2 2 3 3 . Device 9 | 1 2 3 3 . Storage 1 | 1 . . . . Processor . | . . . . . Hackware . | . . . . . Protection . | . . . . . Artifact . | . . . . . Weapon 18 | 3 5 3 4 3 Energy Gun 3 | 2 1 . . . Energy Cannon . | . . . . . Ballistic Gun 3 | 1 2 . . . Ballistic Cannon . | . . . . . Launcher 5 | . . 2 2 1 Special Weapon 2 | . 2 . . . Impact Weapon 5 | . . 1 2 2 Slashing Weapon . | . . . . . Piercing Weapon . | . . . . . Special Melee Weapon . | . . . . . Unidentified Prototypes . | . . . . . Parts Lost 13 | . 1 4 2 6 Power 2 | . . 1 . 1 Propulsion 5 | . . 2 1 2 Utility 3 | . . . 1 2 Weapon 3 | . 1 1 . 1 Highest Loss Streak 4 | . 1 4 2 2 To Critical Strikes . | . . . . . Average Slot Usage (%) 77 | . 95 66 81 42 Engine 11 | . 14 11 10 5 Treads 11 | . 28 5 . . Flight 11 | . . 11 21 20 Device 16 | . 12 12 31 6 Storage 9 | . 14 11 8 . Energy Gun 5 | . 11 6 . . Ballistic Gun 2 | . 5 2 . . Special Weapon 3 | . 8 . . . Impact Weapon 4 | . . 2 7 10 Naked Turns . | . . . . . Heaviest Build 16 | 15 15 16 16 7 Greatest Support 40 | 40 40 40 8 8 Greatest Overweight (x) 3 | 2 . 3 2 1 Average Overweight (x) . | . . 1 . . Largest Inventory Capacity 8 | 8 8 8 8 5 Average Capacity 7 | 6 8 8 7 5 Most Carried 7 | 1 5 7 7 5 Average Carried 4 | . 3 4 6 3 Final Capacity 8 | 8 8 8 5 5 Final Carried 7 | 1 4 7 4 3 Class Distribution -------------------- 86% | Mutant 8% | Sprinter 5% | Scavenger-Mutant Dominant Class ---------------- Mutant | -10/Materials Mutant | -9/Materials Mutant | -9/Storage Sprinter | -9/Garrison Resources | -11 -10 -9 -9 -9 ----------- Run | Yrd Mat Mat Sto Gar Matter Collected 824 | 202 193 147 69 213 Remotely . | . . . . . Salvage Created 485 | 15 165 201 26 78 Parts 41 | 2 14 23 . 2 Haulers Intercepted . | . . . . . Recyclers Shooed 2 | . . 2 . . Parts Field Recycled . | . . . . . Retrieved Matter . | . . . . . Parts Self-Destructed . | . . . . . Prevented . | . . . . . Kills | -11 -10 -9 -9 -9 ------- Run | Yrd Mat Mat Sto Gar Combat Hostiles Destroyed 22 | . 4 13 1 4 Guns 10 | . 4 6 . . AOE 12 | . . 7 1 4 Classes Destroyed 7 | 1 3 2 1 . Tunneler 1 | 1 . . . . Operator 2 | . 1 . 1 . Watcher 1 | . 1 . . . Swarmer 11 | . . 11 . . Grunt 9 | . 4 1 . 4 Duelist 1 | . . 1 . . Sentry 1 | . . . 1 . Best Kill Streak 6 | 1 3 6 1 4 Combat Bots Only 6 | . 3 6 1 4 Max Kills in Single Turn 4 | 1 1 4 1 2 Gunslinging 1 | . . 1 . . Exploded 4 | . . 4 1 2 Melee . | . . . . . Uniques/NPCs Destroyed . | . . . . . Combat | -11 -10 -9 -9 -9 -------- Run | Yrd Mat Mat Sto Gar Hostile Shots Fired 203 | . 48 71 14 70 Missed 80 | . 12 24 8 36 Damage Taken 1398 | . 393 438 125 442 Core 471 | . 66 125 30 250 Absorbed by Shields 66 | . . . . 66 Core Remaining (%) 86 | 100 73 . . . Volleys Fired 84 | 1 41 22 15 5 Largest 2 | 2 2 2 1 1 Hottest 140 | 60 140 60 33 33 Shots Fired 100 | 2 49 29 15 5 Gun 60 | 2 33 25 . . Cannon . | . . . . . Launcher 24 | . . 4 15 5 Special 16 | . 16 . . . Kinetic 28 | 1 19 8 . . Thermal 33 | . 16 17 . . Explosive 24 | . . 4 15 5 Electromagnetic 15 | 1 14 . . . Robot Hit Streak 11 | 2 9 11 2 1 Robot Miss Streak 2 | . 2 2 . 1 Penetration Max . | . . . . . Secondary Targets 1 | . . 1 . . Max Gunslinging Chain 1 | . . 1 . . Shots Hit Robots 51 | 2 22 21 4 2 Core Hits 41 | 1 8 18 3 11 Critical Kills . | . . . . . Critical Parts Destroyed . | . . . . . Critical Strikes . | . . . . . Melee Attacks 42 | . . . 20 22 Impact 42 | . . . 20 22 Slashing . | . . . . . Piercing . | . . . . . Sneak Attacks 2 | . . . 2 . Combat Hostiles . | . . . . . Follow-up Attacks . | . . . . . Damage Inflicted 1664 | 25 387 640 256 356 Guns 593 | 25 319 249 . . Cannons . | . . . . . Explosions 930 | . 44 391 166 329 Melee 117 | . . . 90 27 Ramming . | . . . . . Kinetic 317 | 13 218 86 . . Thermal 231 | . 68 163 . . Explosive 886 | . . 391 166 329 Electromagnetic 113 | 12 101 . . . Impact 117 | . . . 90 27 Slashing . | . . . . . Piercing . | . . . . . Highest Corruption 4 | . . . 3 4 Average Corruption 3 | . . . 3 3 Corruption Purged . | . . . . . Corruption Blocked . | . . . . . Effects 10 | . . . . 10 Message Errors 6 | . . . . 6 Matter Fused 1 | . . . . 1 Heat Flow Errors 1 | . . . . 1 Energy Discharges 1 | . . . . 1 Data Loss (minor) 1 | . . . . 1 Overload Shots . | . . . . . Overflow Damage 41 | . 14 . 22 5 Projectiles . | . . . . . Explosions 19 | . 14 . . 5 Melee 22 | . . . 22 . Knockbacks 1 | . . . . 1 Impact 1 | . . . . 1 Kinetic . | . . . . . Secondary . | . . . . . Self-Inflicted Damage 69 | . . 20 . 49 Shots 3 | . . 1 . 2 Rammed . | . . . . . Targets Rammed . | . . . . . Kicked . | . . . . . Crushed . | . . . . . Highest Temperature 267 | . 122 3 11 267 Average Temperature 45 | . 37 3 5 116 Received Heat Transfer 427 | . 216 24 27 160 Siege Activations . | . . . . . Robots Corrupted . | . . . . . Combat Hostiles . | . . . . . Parts Fried 3 | . . . 3 . Impact Corruptions 1 | . . . 1 . Robots Melted . | . . . . . Combat Hostiles . | . . . . . Parts Melted 1 | . . 1 . . Heat Transferred 450 | . 100 350 . . Parts Sabotaged . | . . . . . Parts Stolen . | . . . . . Parts Stripped . | . . . . . Power Chain Reactions 1 | . 1 . . . Alert | -11 -10 -9 -9 -9 ------- Run | Yrd Mat Mat Sto Gar Peak Influence 423 | 5 75 423 220 368 Initial 178 | . 3 31 178 74 Average 125 | . 32 177 183 229 Maximum Alert Level 2 | . . 2 1 1 Low Security (%) 68 | 100 100 66 34 46 Level 1 30 | . . 24 65 53 Level 2 1 | . . 8 . . Level 3 . | . . . . . Level 4 . | . . . . . Level 5 . | . . . . . High Security . | . . . . . Max Security . | . . . . . Squads Dispatched 3 | . 2 . 1 . Investigation 1 | . 1 . . . Extermination . | . . . . . Reinforcement 2 | . 1 . 1 . Assault . | . . . . . Garrison . | . . . . . Intercept . | . . . . . Searches Triggered . | . . . . . Construction Impeded . | . . . . . Haulers Reinforced . | . . . . . Active Scanning Responses . | . . . . . Cargo Convoy Interrupts . | . . . . . Stealth | -11 -10 -9 -9 -9 --------- Run | Yrd Mat Mat Sto Gar Distress Signals 1 | . 1 . . . Communications Jammed . | . . . . . Distress Signals . | . . . . . Times Spotted 40 | . 8 17 3 12 Peak Tracking Total 8 | . 3 5 2 8 Tactical Retreats 6 | . . 1 1 4 Traps | -11 -10 -9 -9 -9 ------- Run | Yrd Mat Mat Sto Gar Traps Triggered 7 | . 1 . 2 4 Indirectly . | . . . . . Trap Hack Attempts . | . . . . . Triggered . | . . . . . Disarmed . | . . . . . Reprogrammed . | . . . . . Reused 7 | . . . . 7 Traps Extracted . | . . . . . Installed 9 | . . . . 9 Triggered 7 | . . . . 7 Most Traps Carried 4 | . . . . 4 Machines | -11 -10 -9 -9 -9 ---------- Run | Yrd Mat Mat Sto Gar Machines Disabled 6 | . . 1 3 2 Max in Single Turn 1 | . . 1 1 1 Garrison Relay 1 | . . . . 1 Machines Repaired . | . . . . . Machines Dismantled . | . . . . . Machines Sabotaged . | . . . . . Overloaded Fab Kills . | . . . . . Hacking | -11 -10 -9 -9 -9 --------- Run | Yrd Mat Mat Sto Gar Machines Accessed 8 | . 4 . 3 1 Terminals 7 | . 4 . 2 1 Fabricators . | . . . . . Repair Stations . | . . . . . Recycling Units . | . . . . . Scanalyzers . | . . . . . Garrison Access 1 | . . . 1 . Total Hacks 19 | . 13 . 4 2 Successful 10 | . 7 . 3 . Failed 9 | . 6 . 1 2 Catastrophic 3 | . 1 . . 2 Database Lockouts . | . . . . . Manual 14 | . 14 . . . Terminals 18 | . 13 . 3 2 Fabricators . | . . . . . Repair Stations . | . . . . . Recycling Units . | . . . . . Scanalyzers . | . . . . . Garrison Access 1 | . . . 1 . Terminal Hacks 7 | . 5 . 2 . Robot Analysis 4 | . 4 . . . Open Door 2 | . . . 2 . Hauler Manifests 1 | . 1 . . . Fabricator Hacks . | . . . . . Repair Station Hacks . | . . . . . Recycling Unit Hacks . | . . . . . Scanalyzer . | . . . . . Garrison Access Hacks 1 | . . . 1 . Unlock Access 1 | . . . 1 . Unauthorized Hacks 2 | . 2 . . . Terminals 2 | . 2 . . . Botnet 2 | . 2 . . . Fabricators . | . . . . . Repair Stations . | . . . . . Recycling Units . | . . . . . Scanalyzers . | . . . . . Garrison Access . | . . . . . Data Cores Recovered 1 | . 1 . . . Used 1 | . 1 . . . Hacking Detections 6 | . 4 . 1 1 Full Trace Events 1 | . . . . 1 Feedback Events 1 | . . . . 1 Corruption 1 | . . . . 1 Feedback Blocked . | . . . . . Robot Schematics Acquired . | . . . . . Robots Built . | . . . . . Authchips . | . . . . . Time . | . . . . . Total Robot Build Rating . | . . . . . Part Schematics Acquired . | . . . . . Parts Built . | . . . . . Authchips . | . . . . . Time . | . . . . . Total Part Build Rating . | . . . . . Parts Repaired . | . . . . . Time . | . . . . . Parts Recycled . | . . . . . Recycled Matter . | . . . . . Retrieved Matter . | . . . . . Retrieved Components . | . . . . . Parts Scanalyzed . | . . . . . Part Schematics Acquired . | . . . . . Parts Damaged . | . . . . . Bothacking | -11 -10 -9 -9 -9 ------------ Run | Yrd Mat Mat Sto Gar Used RIF Installer 1 | . . . . 1 Robots Hacked . | . . . . . Non-combat . | . . . . . Combat . | . . . . . Robot Hacks Applied . | . . . . . Relay Couplers Released 3 | . . . . 3 Machine Destruction 3 | . . . . 3 Fabnet Peak Effective % . | . . . . . Robots Rewired . | . . . . . Allies Hacked . | . . . . . Hacks Repelled . | . . . . . Allies | -11 -10 -9 -9 -9 -------- Run | Yrd Mat Mat Sto Gar Total Allies . | . . . . . Largest Group . | . . . . . Highest-Rated Group . | . . . . . Highest-Rated Ally . | . . . . . Total Orders . | . . . . . Ally Attacks . | . . . . . Total Damage . | . . . . . Kills . | . . . . . Allies Corrupted . | . . . . . Allies Melted . | . . . . . Intel | -11 -10 -9 -9 -9 ------- Run | Yrd Mat Mat Sto Gar Robot Analysis Total 4 | . 4 . . . Derelict Logs Recovered . | . . . . . Drone Launches . | . . . . . Drone Recoveries . | . . . . . Exploration | -11 -10 -9 -9 -9 ------------- Run | Yrd Mat Mat Sto Gar Turns Passed 1732 | 82 645 227 466 312 Spaces Moved 1014 | 42 252 117 149 454 Core 76 | 9 . 15 . 52 Treads 302 | 33 252 17 . . Legs . | . . . . . Wheels . | . . . . . Hover . | . . . . . Flight 636 | . . 85 149 402 Fastest Speed 32 | 50 160 112 34 32 Average Speed 88 | 153 160 126 84 35 Slowest Speed 275 | 160 160 275 200 100 Overloaded Moves . | . . . . . Propulsion Burnouts . | . . . . . Robots Hopped 4 | . . . 3 1 Cave-ins Triggered 1 | . . . 1 . Exploration Rate (%) 24 | 3 41 11 25 43 Regions Visited 4 Branch Regions 1 Pre-discovered Areas . | . . . . . Known Exits Taken 1 | . . . 1 . Unknown Exits Taken 3 | 1 1 1 . . Scrap Searched . | . . . . . Spaces Dug 68 | . 9 . 56 3 Terrain Destroyed 187 | . 18 30 84 55 Melee 11 | . . . 8 3 Projectile 13 | . 13 . . . AOE 163 | . 5 30 76 52 Terrain Rammed . | . . . . . Walls Destroyed . | . . . . . Machines Disabled . | . . . . . Actions | -11 -10 -9 -9 -9 --------- Run | Yrd Mat Mat Sto Gar Total 1633 | 54 412 170 435 562 Wait 362 | 2 103 5 234 18 Move 997 | 41 251 116 141 448 Hop 4 | . . . 3 1 Pick Up 25 | 1 5 8 1 10 Fast Attach 20 | 8 2 4 6 . Attach 12 | . 1 6 3 2 Detach 9 | . 2 4 3 . Swap 9 | . 4 . 3 2 Drop 23 | 1 3 5 5 9 Fire 84 | 1 41 22 15 5 Melee 42 | . . . 20 22 Ram . | . . . . . Kick . | . . . . . Crush . | . . . . . Escape Stasis 37 | . . . 1 36 Rewire . | . . . . . Trap 9 | . . . . 9 Miscellaneous . | . . . . . Route ------- -11/Scrapyard -10/Materials (discovered 2 exits: [*Mat x2]) -9/Materials -9/Storage -9/Garrison (discovered 1 exit: [*Mat]) History --------- Turn | Location | Event 15 | -11/Scrapyard | Discovered new exit (range 15) 83 | -11/Scrapyard | Entered Materials 321 | -10/Materials | Discovered new exit (range 10) 328 | -10/Materials | Build established: Mutant 584 | -10/Materials | Discovered new exit (range 16) 728 | -10/Materials | Entered another Materials area 728 | -9/Materials | Evolved 2 slots: Utility x2 823 | -9/Materials | Lost 4 parts (1p2n1w) 899 | -9/Materials | Discovered new exit (range 15) 955 | -9/Materials | Entered Storage 1413 | -9/Storage | Crushed by falling debris 1421 | -9/Storage | Identified exit to Garrison 1421 | -9/Storage | Entered Garrison 1517 | -9/Garrison | Triggered checkpoint 1525 | -9/Garrison | Triggered checkpoint 1548 | -9/Garrison | Discovered new exit (range 10) 1553 | -9/Garrison | Attempted to access garrison exit controls, blocked by remote lockdown 1568 | -9/Garrison | Core integrity fell below 50% 1677 | -9/Garrison | Installed Relay Interface Framework 1681 | -9/Garrison | Triggered checkpoint 1696 | -9/Garrison | Core integrity fell below 20% 1710 | -9/Garrison | Garrison Relay disabled 1733 | -9/Garrison | Destroyed by Heavy Explosive Trap Last Messages --------------- 01703_ Stasis field depleted. 01705_ 1FFH7SEFWW=:::